fUSD/lending_fUSD_20240612
["ID","MTS","AMOUNT","RATE_DAILY","PERIOD"]
[329186183,1718163043679,-1584.30309784,0.00014,2]
[329186184,1718163043710,-100243.22677005,0.00014,2]
[329186185,1718163043721,-3637.19608889,0.00014,2]
[329186186,1718163043936,-1628.673527,0.00014,2]
[329186187,1718163043973,-466.0277353,0.00014,2]
[329186188,1718163043986,-378.223526,0.00014,2]
[329186189,1718163044250,-1253.73407752,0.00014,2]
[329186191,1718163047148,-644.05,0.00014,2]
[329186192,1718163047225,-2203.48558072,0.00014,2]
[329186193,1718163047240,-309065.6789028,0.00014,2]
[329186194,1718163047317,-3223.51638071,0.00014,2]
[329186195,1718163047337,-758.4128887,0.00014,2]
[329186196,1718163047353,-967.0,0.00014,2]
[329186197,1718163047464,-557.91994674,0.00014,2]
[329186198,1718163047478,-605.50432414,0.00014,2]
[329186199,1718163047492,-13012.70289753,0.00014,2]
[329186200,1718163047518,-351.22370167,0.00014,2]
[329186201,1718163047653,-769.05650803,0.00014,2]
[329186202,1718163047668,-417.50900005,0.00014,2]
[329186203,1718163047713,-1900.443,0.00014,2]
[329186204,1718163047962,-1144.6138646,0.00014,2]
[329186205,1718163048081,-6037.72443787,0.00014,2]
[329186206,1718163048094,-13413.10303866,0.00014,2]
[329186207,1718163048106,-544.68072996,0.00014,2]
[329186208,1718163048118,-295.12565298,0.00014,2]
[329186209,1718163048134,-501.50580398,0.00014,2]
[329186210,1718163048247,-390.67842279,0.00014,2]
[329186211,1718163048259,-680.44298611,0.00014,2]
[329186217,1718163446708,636.44,0.00010959,2]
[329186219,1718163471993,557.42,0.00012059,2]
[329186220,1718163472751,168.58,0.00012059,2]
[329186221,1718163485010,200.0,0.00012089,2]
[329186222,1718163498511,250.0,0.00012088,2]
[329186223,1718163523567,347.98279632,0.00012088,2]
[329186224,1718163528706,72603.3549043,0.00012088,2]
[329186225,1718163535574,323.76843846,0.00012088,2]
[329186227,1718163587663,507.97,0.0001017,2]
[329186228,1718163606509,200.0,0.00012054,2]
[329186229,1718163645505,438.28,0.00012054,2]
[329186240,1718164062479,840.0,0.00012062,2]
[329186242,1718164114188,170.25,0.00012059,2]
[329186243,1718164130631,250.0,0.00012059,2]
[329186244,1718164141805,482.57,0.00010163,2]
[329186245,1718164150588,250.0,0.00012054,2]
[329186258,1718164232284,-436.76799294,0.00012209,2]
[329186259,1718164232295,-158.73412313,0.0001221,2]
[329186260,1718164232305,-176.66596482,0.00012214,2]
[329186261,1718164232316,-269.36949402,0.00012309,2]
[329186262,1718164232326,-52.96841438,0.00012317,2]
[329186263,1718164232482,-97.03158562,0.00012317,2]
[329186264,1718164232493,-482.57,0.00012427,2]
[329186265,1718164232503,-150.0,0.00012712,2]
[329186266,1718164232513,-7314.82828428,0.00012941,2]
[329186267,1718164232527,-1109.23593881,0.00012941,2]
[329186268,1718164232537,-1326.32752476,0.00012942,2]
[329186269,1718164232546,-2886.64584018,0.00012944,2]
[329186270,1718164232935,-549.3079707,0.00012944,2]
[329186271,1718164232973,-1657.86901105,0.00012944,2]
[329186272,1718164233078,-316.76417223,0.00012944,2]
[329186273,1718164233088,-499.99,0.00012944,2]
[329186274,1718164233099,-155.82,0.00012956,2]
[329186275,1718164233112,-155.82,0.00012961,2]
[329186276,1718164233122,-155.82,0.00012966,2]
[329186277,1718164233133,-155.82,0.0001297,2]
[329186278,1718164233144,-155.82,0.00012975,2]
[329186279,1718164233154,-155.82,0.0001298,2]
[329186280,1718164233166,-155.82,0.00012984,2]
[329186281,1718164233177,-155.82,0.00012989,2]
[329186282,1718164233187,-155.82,0.00012993,2]
[329186283,1718164233198,-155.82,0.00012998,2]
[329186284,1718164233209,-898.5362405,0.00013,2]
[329186286,1718164233218,-155.82,0.00013003,2]
[329186287,1718164233230,-155.82,0.00013007,2]
[329186289,1718164233241,-155.82,0.00013012,2]
[329186291,1718164233251,-155.82,0.00013017,2]
[329186293,1718164233262,-155.82,0.00013021,2]
[329186295,1718164233272,-171.01,0.00013097,2]
[329186297,1718164233282,-748.7165,0.0001324,2]
[329186299,1718164233292,-503.66714772,0.00013338,2]
[329186301,1718164233303,-162.95274086,0.00013338,2]
[329186303,1718164233314,-204.60843838,0.00013338,2]
[329186305,1718164233324,-155.05995159,0.00013338,2]
[329186307,1718164233335,-1054.06349141,0.00013338,2]
[329186310,1718164233358,-116.58569527,0.00013338,2]
[329186312,1718164233368,-162.07659997,0.00013338,2]
[329186315,1718164233379,-1255.99857422,0.00013338,2]
[329186408,1718164238114,-239.67715849,0.00013338,2]
[329186409,1718164238126,-174.40747571,0.00013338,2]
[329186410,1718164238139,-107.92131955,0.00013338,2]
[329186411,1718164238149,-155.46844464,0.00013338,2]
[329186412,1718164238160,-155.0,0.00013338,2]
[329186413,1718164238171,-351.71177481,0.00013338,2]
[329186414,1718164238190,-429.75149219,0.00013338,2]
[329186415,1718164238341,-470.10148916,0.00013338,2]
[329186416,1718164238351,-183.45382908,0.00013339,2]
[329186417,1718164238607,-181.00576927,0.00013339,2]
[329186418,1718164238618,-531.28886765,0.00013339,2]
[329186419,1718164238630,-580.79166872,0.00013339,2]
[329186436,1718164245638,-3971.63435075,0.00013338,2]
[329186437,1718164245651,-458.93168001,0.00013339,2]
[329186438,1718164245734,-1529.74384752,0.00013339,2]
[329186439,1718164245745,-400.69858343,0.00013339,2]
[329186463,1718164674382,716.13899234,0.00012099,2]
[329186464,1718164678958,269.36949402,0.00012099,2]
[329186465,1718164682792,886.40752803,0.00012099,2]
[329186469,1718164777314,604.73,0.00010621,2]
[329186471,1718164878394,879.0,0.00026,30]
[329186472,1718164881919,268.10925867,0.00010621,2]
[329186473,1718164884205,551.53564297,0.00010621,2]
[329186474,1718164888763,948.1605804,0.00010621,2]
[329186478,1718164896971,181.17211758,0.00010621,2]
[329186479,1718164904155,553.05243858,0.00010621,2]
[329186480,1718164906532,437.50744056,0.00010621,2]
[329186482,1718164949107,355.79,0.0001204,2]
[329186484,1718164978313,2000.54181067,0.00012099,2]
[329186485,1718164998855,269.36949402,0.00012099,2]
[329186488,1718165012924,-2664.9522,0.0001211,2]
[329186489,1718165012961,-171.01,0.00012337,2]
[329186490,1718165012988,-154.42,0.000125,2]
[329186491,1718165013014,-250.0,0.00012526,2]
[329186492,1718165013046,-300.0,0.00012646,2]
[329186493,1718165013097,-150.0,0.00012646,2]
[329186494,1718165013124,-150.0,0.00012646,2]
[329186495,1718165013150,-244.6178,0.00012647,2]
[329186497,1718165108024,287.3583,0.00012001,2]
[329186501,1718165232181,-539.73513232,0.0001239,2]
[329186502,1718165232205,-490.7854506,0.00012391,2]
[329186503,1718165232229,-786.67595882,0.00012391,2]
[329186504,1718165232254,-890.76505943,0.00012392,2]
[329186505,1718165232278,-2613.22290195,0.00012394,2]
[329186506,1718165232305,-1000.0,0.00012506,2]
[329186507,1718165232331,-425.56470909,0.00012508,2]
[329186508,1718165232356,-150.0,0.00012646,2]
[329186509,1718165232382,-300.0,0.00012646,2]
[329186510,1718165232407,-406.94521893,0.00012647,2]
[329186511,1718165246043,2610.71260502,0.00012,2]
[329186512,1718165375454,644.39,0.00010714,2]
[329186534,1718165434434,-250.0,0.0001251,2]
[329186535,1718165434445,-19762.56,0.00012556,2]
[329186536,1718165434456,-168.58,0.00012594,2]
[329186537,1718165434468,-2486.48,0.00012632,2]
[329186538,1718165434478,-178.42,0.00012647,2]
[329186539,1718165434491,-557.42,0.00012674,2]
[329186540,1718165434518,-1345.47,0.00012706,2]
[329186541,1718165434531,-154.42,0.00012717,2]
[329186542,1718165434550,-171.01,0.00012758,2]
[329186543,1718165434565,-154.42,0.00012934,2]
[329186544,1718165434578,-644.39,0.00012978,2]
[329186545,1718165434590,-499.99,0.00013072,2]
[329186546,1718165434602,-154.42,0.00013151,2]
[329186547,1718165434613,-150.0,0.00013202,2]
[329186548,1718165434624,-1303.00649786,0.00013203,2]
[329186549,1718165434637,-277.94953345,0.00013205,2]
[329186550,1718165434648,-21287.6043,0.0001324,2]
[329186551,1718165434659,-23351.6343,0.0001324,2]
[329186552,1718165434670,-438.87479594,0.00013338,2]
[329186553,1718165434680,-628.49267898,0.00013338,2]
[329186554,1718165434692,-2869.35500047,0.00013338,2]
[329186555,1718165434702,-549.30429165,0.00013338,2]
[329186556,1718165434713,-296.24683358,0.00013338,2]
[329186557,1718165434723,-481.85167187,0.00013338,2]
[329186558,1718165434733,-204.46278,0.00013338,2]
[329186559,1718165434744,-2048.57700673,0.00013338,2]
[329186560,1718165434754,-155.58117921,0.00013338,2]
[329186561,1718165434764,-3053.96397174,0.00013338,2]
[329186562,1718165434775,-9522.53044448,0.00013338,2]
[329186563,1718165434785,-177.53438839,0.00013338,2]
[329186564,1718165434796,-155.65812337,0.00013338,2]
[329186565,1718165434806,-3496.36006798,0.00013339,2]
[329186566,1718165435082,-556.37876242,0.00013339,2]
[329186567,1718165435094,-1052.6686363,0.00013339,2]
[329186568,1718165435105,-3000.0,0.00013339,2]
[329186569,1718165435118,-359.38,0.00013356,2]
[329186570,1718165435129,-536.25,0.00013386,2]
[329186571,1718165435139,-167.42,0.00013386,2]
[329186572,1718165435150,-152.2,0.00013386,2]
[329186573,1718165435183,-152.66,0.00013386,2]
[329186574,1718165435194,-526.55,0.00013386,2]
[329186575,1718165435205,-164.25,0.00013386,2]
[329186576,1718165435216,-150.0,0.00013386,2]
[329186577,1718165435227,-150.0,0.00013386,2]
[329186578,1718165435238,-296.9210728,0.00013386,2]
[329186579,1718165435366,-229.6289272,0.00013386,2]
[329186580,1718165435378,-150.0,0.00013386,2]
[329186581,1718165435388,-120.3710728,0.00013386,2]
[329186582,1718165435401,-29.6289272,0.00013386,2]
[329186583,1718165435412,-150.0,0.00013386,2]
[329186584,1718165435423,-300.0,0.00013386,2]
[329186585,1718165435434,-150.0,0.00013386,2]
[329186586,1718165435445,-502.2,0.00013388,2]
[329186588,1718165435456,-422.78,0.00013388,2]
[329186589,1718165435466,-378.6048633,0.00013388,2]
[329186590,1718165435479,-44.1751367,0.00013388,2]
[329186591,1718165435491,-845.56,0.00013388,2]
[329186592,1718165435502,-422.78,0.00013388,2]
[329186593,1718165435513,-422.78,0.00013388,2]
[329186594,1718165435524,-422.78,0.00013388,2]
[329186595,1718165435536,-422.78,0.00013388,2]
[329186596,1718165435547,-422.78,0.00013388,2]
[329186597,1718165435558,-422.78,0.00013388,2]
[329186598,1718165435571,-300.0,0.000134,2]
[329186599,1718165435583,-706.33,0.000134,2]
[329186600,1718165435594,-150.0,0.000134,2]
[329186601,1718165435605,-150.0,0.000134,2]
[329186602,1718165435615,-705.73,0.000134,2]
[329186603,1718165435628,-164.25,0.000134,2]
[329186604,1718165435639,-277.12,0.00013699,2]
[329186605,1718165435649,-868.72,0.00013699,2]
[329186606,1718165435659,-1000.0,0.000138,2]
[329186607,1718165435670,-1342.83134186,0.000138,2]
[329186608,1718165435681,-500.0,0.00013888,2]
[329186609,1718165435692,-200.0,0.00013888,2]
[329186610,1718165435703,-636.44,0.0001389,3]
[329186611,1718165435715,-140.68805468,0.0001389,3]
[329186612,1718165435730,-80.86194532,0.0001389,3]
[329186613,1718165435742,-298.69077048,0.00013898,2]
[329186614,1718165435811,-286.69189359,0.00013898,2]
[329186615,1718165435823,-395.93374709,0.00013898,2]
[329186616,1718165435834,-522.77803504,0.00013898,2]
[329186617,1718165435845,-155.0,0.00013898,2]
[329186618,1718165435856,-116.5409749,0.00013898,2]
[329186620,1718165441427,-1133.22705033,0.00013898,2]
[329186621,1718165441437,-423.08860468,0.00013898,2]
[329186622,1718165441448,-238.40639541,0.00013898,2]
[329186623,1718165441458,-161.63825425,0.00013899,2]
[329186624,1718165441468,-1215.7718205,0.00013899,2]
[329186625,1718165441478,-183.70473488,0.000139,2]
[329186626,1718165441488,-167.12061151,0.000139,2]
[329186627,1718165441498,-100000.0,0.000139,2]
[329186628,1718165441509,-23768.53060815,0.000139,2]
[329186629,1718165441519,-7500.0,0.000139,2]
[329186630,1718165441530,-322.60322673,0.000139,2]
[329186631,1718165441541,-3324.8417095,0.000139,2]
[329186632,1718165441551,-286.75015338,0.000139,2]
[329186633,1718165441561,-1018.0,0.000139,2]
[329186634,1718165441573,-216.12221467,0.000139,2]
[329186635,1718165441585,-1342.83134186,0.000139,2]
[329186636,1718165441595,-159.18,0.0001399,2]
[329186637,1718165441605,-159.18,0.0001399,2]
[329186638,1718165441615,-529.82177144,0.00013998,2]
[329186639,1718165441625,-156.99345361,0.00013998,2]
[329186640,1718165441635,-158.55084504,0.00013998,2]
[329186641,1718165441645,-159.30444685,0.00013998,2]
[329186642,1718165441655,-569.10495248,0.00013998,2]
[329186643,1718165441665,-155.37025279,0.00013998,2]
[329186644,1718165441675,-313.16438436,0.00013998,2]
[329186645,1718165441685,-179.14381601,0.00013998,2]
[329186646,1718165441696,-335.55638312,0.00013998,2]
[329186647,1718165441707,-172.32162905,0.00013998,2]
[329186648,1718165441717,-296.7429459,0.00013998,2]
[329186649,1718165441727,-231.45136422,0.00013998,2]
[329186650,1718165441737,-237.62987682,0.00013998,2]
[329186651,1718165441747,-162.78574272,0.00013998,2]
[329186652,1718165441758,-308.96656589,0.00013998,2]
[329186653,1718165441768,-290.58914938,0.00013998,2]
[329186654,1718165441778,-172.50018411,0.00013998,2]
[329186655,1718165441789,-199.34536475,0.00013998,2]
[329186656,1718165441799,-173.5837936,0.00013998,2]
[329186657,1718165441809,-162.82482926,0.00013998,2]
[329186658,1718165441819,-155.52143529,0.00013998,2]
[329186659,1718165441829,-207.11642996,0.00013998,2]
[329186660,1718165441840,-203.19162603,0.00013998,2]
[329186661,1718165441850,-182.34713551,0.00013998,2]
[329186662,1718165441860,-202.11050456,0.00013998,2]
[329186663,1718165441870,-156.30592184,0.00013998,2]
[329186664,1718165441881,-161.71408333,0.00013998,2]
[329186665,1718165441893,-193.47561309,0.00013998,2]
[329186666,1718165441904,-191.84417947,0.00013998,2]
[329186667,1718165441915,-2423.44320668,0.00013998,2]
[329186668,1718165441925,-155.90885773,0.00013998,2]
[329186669,1718165441935,-202.57166882,0.00013998,2]
[329186670,1718165441946,-243.96742724,0.00013998,2]
[329186671,1718165441956,-284.934506,0.00013998,2]
[329186672,1718165441966,-155.7347314,0.00013998,2]
[329186673,1718165441981,-569.06397579,0.00013998,2]
[329186674,1718165441991,-227.00481629,0.00013999,2]
[329186675,1718165442001,-2344.0021563,0.00013999,2]
[329186676,1718165442012,-155.0,0.00013999,2]
[329186677,1718165442024,-155.48392836,0.00013999,2]
[329186678,1718165442034,-211.14365621,0.00013999,2]
[329186679,1718165442045,-398.69604985,0.00013999,2]
[329186680,1718165442055,-159.32862953,0.00013999,2]
[329186681,1718165442066,-1145578.1237606,0.00014,2]
[329186682,1718165442076,-2769505.19587939,0.00014,2]
[329186684,1718165442086,-1046.42899765,0.00014,2]
[329186686,1718165442096,-2000.0,0.00014,2]
[329186688,1718165442106,-200.0,0.00014,2]
[329186690,1718165442116,-200.0,0.00014,2]
[329186692,1718165442126,-500.0,0.00014,2]
[329186693,1718165442136,-500.0,0.00014,2]
[329186694,1718165442146,-500.0,0.00014,2]
[329186695,1718165442155,-500.0,0.00014,2]
[329186696,1718165442171,-500.0,0.00014,2]
[329186697,1718165442183,-500.0,0.00014,2]
[329186698,1718165442193,-500.0,0.00014,2]
[329186699,1718165442203,-500.0,0.00014,2]
[329186700,1718165442213,-500.0,0.00014,2]
[329186701,1718165442224,-500.0,0.00014,2]
[329186702,1718165442235,-500.0,0.00014,2]
[329186703,1718165442250,-500.0,0.00014,2]
[329186704,1718165442260,-500.0,0.00014,2]
[329186705,1718165442270,-500.0,0.00014,2]
[329186706,1718165442280,-500.0,0.00014,2]
[329186707,1718165442290,-500.0,0.00014,2]
[329186708,1718165442300,-500.0,0.00014,2]
[329186709,1718165442310,-500.0,0.00014,2]
[329186710,1718165442320,-500.0,0.00014,2]
[329186711,1718165442330,-500.0,0.00014,2]
[329186712,1718165442340,-500.0,0.00014,2]
[329186713,1718165442350,-500.0,0.00014,2]
[329186714,1718165442360,-500.0,0.00014,2]
[329186715,1718165442373,-500.0,0.00014,2]
[329186716,1718165442383,-500.0,0.00014,2]
[329186717,1718165442394,-500.0,0.00014,2]
[329186718,1718165442404,-500.0,0.00014,2]
[329186719,1718165442414,-500.0,0.00014,2]
[329186720,1718165442424,-500.0,0.00014,2]
[329186721,1718165442435,-500.0,0.00014,2]
[329186722,1718165442446,-500.0,0.00014,2]
[329186723,1718165442457,-500.0,0.00014,2]
[329186724,1718165442468,-500.0,0.00014,2]
[329186725,1718165442478,-500.0,0.00014,2]
[329186726,1718165442489,-500.0,0.00014,2]
[329186727,1718165442499,-500.0,0.00014,2]
[329186728,1718165442508,-500.0,0.00014,2]
[329186729,1718165442519,-500.0,0.00014,2]
[329186730,1718165442530,-500.0,0.00014,2]
[329186731,1718165442539,-500.0,0.00014,2]
[329186732,1718165442549,-500.0,0.00014,2]
[329186733,1718165442558,-500.0,0.00014,2]
[329186734,1718165442569,-500.0,0.00014,2]
[329186735,1718165442579,-500.0,0.00014,2]
[329186736,1718165442588,-500.0,0.00014,2]
[329186737,1718165442598,-500.0,0.00014,2]
[329186738,1718165442609,-500.0,0.00014,2]
[329186739,1718165442620,-500.0,0.00014,2]
[329186740,1718165442630,-500.0,0.00014,2]
[329186741,1718165442640,-500.0,0.00014,2]
[329186742,1718165442649,-500.0,0.00014,2]
[329186743,1718165442663,-500.0,0.00014,2]
[329186744,1718165442674,-500.0,0.00014,2]
[329186745,1718165442685,-500.0,0.00014,2]
[329186746,1718165442696,-500.0,0.00014,2]
[329186747,1718165442707,-500.0,0.00014,2]
[329186748,1718165442718,-500.0,0.00014,2]
[329186749,1718165442728,-320.2,0.00014,2]
[329186750,1718165442738,-173.5692811,0.00014001,2]
[329186751,1718165442748,-2218.2671455,0.00014001,2]
[329186752,1718165442758,-18064.4634113,0.00014001,2]
[329186753,1718165442768,-8460.5912959,0.00014001,2]
[329186754,1718165442778,-20927.9060913,0.00014041,2]
[329186755,1718165442788,-867.84640648,0.0001405,2]
[329186756,1718165442798,-11813.325349,0.0001406,2]
[329186757,1718165442808,-1000.0,0.00014069,2]
[329186758,1718165442819,-2000.0,0.0001414,2]
[329186759,1718165442829,-200.0,0.0001414,2]
[329186760,1718165442841,-2356.0,0.00014157,2]
[329186761,1718165442851,-422.78,0.0001421,2]
[329186762,1718165442864,-422.78,0.0001421,2]
[329186763,1718165442876,-346.84,0.0001421,2]
[329186764,1718165442886,-2000.0,0.00014281,2]
[329186765,1718165442898,-200.0,0.00014281,2]
[329186766,1718165442909,-277.12,0.00014384,2]
[329186767,1718165442920,-3000.0,0.0001439,2]
[329186768,1718165442934,-1607.16307906,0.00014424,2]
[329186769,1718165442945,-384.257056,0.00014521,2]
[329186770,1718165442955,-286.75015336,0.00014796,2]
[329186771,1718165442965,-23768.53060804,0.00014828,2]
[329186772,1718165442979,-38079.0,0.00014838,2]
[329186773,1718165442992,-292.953,0.00014838,2]
[329186774,1718165443003,-5157.0,0.00014838,2]
[329186775,1718165443013,-5787.0,0.00014838,2]
[329186776,1718165443026,-1574.0,0.00014838,2]
[329186777,1718165443036,-1195.0,0.00014838,2]
[329186778,1718165443048,-151.0,0.00014973,2]
[329186779,1718165443060,-151.0,0.00014973,2]
[329186780,1718165443070,-151.0,0.00014973,2]
[329186781,1718165443079,-298.498761,0.00014973,2]
[329186782,1718165443090,-151.0,0.00014973,2]
[329186783,1718165443100,-151.0,0.00014973,2]
[329186784,1718165443110,-484.970837,0.00014973,2]
[329186785,1718165443120,-151.0,0.00014973,2]
[329186787,1718165443130,-484.970837,0.00014973,2]
[329186788,1718165443141,-151.0,0.00014973,2]
[329186790,1718165443151,-184.760096,0.00014973,2]
[329186792,1718165443162,-184.760096,0.00014973,2]
[329186794,1718165443181,-151.0,0.00014973,2]
[329186795,1718165443192,-988.11,0.00014973,2]
[329186797,1718165443201,-361.842,0.00014973,2]
[329186799,1718165443212,-1289.424,0.00014973,2]
[329186800,1718165443222,-616.0,0.00014973,2]
[329186801,1718165443232,-441.0,0.00014973,2]
[329186803,1718165443242,-1651.0,0.00014973,2]
[329186804,1718165443253,-1831.0,0.00014973,2]
[329186805,1718165443265,-167.354,0.00014973,2]
[329186806,1718165443276,-151.95,0.00014973,2]
[329186807,1718165443288,-808.0,0.00014973,2]
[329186808,1718165443299,-452.285,0.00014973,2]
[329186809,1718165443310,-2407.0,0.00014973,2]
[329186810,1718165443321,-551.833,0.00014973,2]
[329186811,1718165443333,-1327.24,0.00014973,2]
[329186812,1718165443343,-3291.847,0.00014973,2]
[329186814,1718165443358,-1990.235,0.00014973,2]
[329186815,1718165443371,-1047.10843307,0.00015,2]
[329186816,1718165443386,-491111.04605638,0.00015,2]
[329186817,1718165443400,-489.0,0.00015,2]
[329186818,1718165443415,-153610.09844066,0.00015,2]
[329186819,1718165443427,-2487.18140371,0.00015,2]
[329186820,1718165443437,-155.0,0.00015,2]
[329186821,1718165443449,-221.19450247,0.00015,2]
[329186822,1718165443462,-624.56912429,0.00015,2]
[329186823,1718165443475,-155.37560093,0.00015,2]
[329186824,1718165443488,-9720.10594519,0.00015,2]
[329186825,1718165443502,-151.0,0.00015,2]
[329186826,1718165443516,-151.48693,0.00015,2]
[329186827,1718165443530,-151.0,0.00015,2]
[329186828,1718165443544,-151.0,0.00015,2]
[329186829,1718165443556,-151.0,0.00015,2]
[329186830,1718165443570,-167.288041,0.00015,2]
[329186831,1718165443585,-151.0,0.00015,2]
[329186832,1718165443599,-151.0,0.00015,2]
[329186833,1718165443611,-151.0,0.00015,2]
[329186834,1718165443624,-151.0,0.00015,2]
[329186835,1718165443638,-151.0,0.00015,2]
[329186836,1718165443651,-151.0,0.00015,2]
[329186837,1718165443662,-151.0,0.00015,2]
[329186838,1718165443674,-151.0,0.00015,2]
[329186839,1718165443686,-151.0,0.00015,2]
[329186840,1718165443698,-151.0,0.00015,2]
[329186841,1718165443711,-151.0,0.00015,2]
[329186842,1718165443724,-151.0,0.00015,2]
[329186843,1718165443736,-151.0,0.00015,2]
[329186844,1718165443749,-152.728198,0.00015,2]
[329186845,1718165443760,-151.0,0.00015,2]
[329186846,1718165443771,-151.896191,0.00015,2]
[329186847,1718165443782,-151.0,0.00015,2]
[329186848,1718165443795,-215.84384,0.00015,2]
[329186849,1718165443806,-215.84384,0.00015,2]
[329186850,1718165443820,-151.0,0.00015,2]
[329186851,1718165443836,-151.0,0.00015,2]
[329186852,1718165443849,-152.518084,0.00015,2]
[329186853,1718165443862,-151.0,0.00015,2]
[329186854,1718165443874,-151.0,0.00015,2]
[329186855,1718165443892,-151.0,0.00015,2]
[329186856,1718165443906,-154.844247,0.00015,2]
[329186857,1718165443920,-151.0,0.00015,2]
[329186858,1718165443933,-151.0,0.00015,2]
[329186859,1718165443948,-151.0,0.00015,2]
[329186860,1718165443960,-151.0,0.00015,2]
[329186861,1718165443973,-151.0,0.00015,2]
[329186862,1718165443993,-153.448887,0.00015,2]
[329186863,1718165444005,-151.0,0.00015,2]
[329186864,1718165444017,-151.0,0.00015,2]
[329186865,1718165444029,-151.0,0.00015,2]
[329186866,1718165444045,-154.566069,0.00015,2]
[329186867,1718165444058,-151.0,0.00015,2]
[329186868,1718165444072,-151.297332,0.00015,2]
[329186869,1718165444087,-151.0,0.00015,2]
[329186870,1718165444099,-152.852612,0.00015,2]
[329186871,1718165444110,-151.0,0.00015,2]
[329186872,1718165444123,-151.0,0.00015,2]
[329186873,1718165444135,-151.0,0.00015,2]
[329186874,1718165444149,-151.0,0.00015,2]
[329186875,1718165444181,-151.0,0.00015,2]
[329186876,1718165444205,-378.261335,0.00015,2]
[329186877,1718165444217,-378.261335,0.00015,2]
[329186878,1718165444229,-151.0,0.00015,2]
[329186879,1718165444243,-151.0,0.00015,2]
[329186880,1718165444255,-151.0,0.00015,2]
[329186881,1718165444267,-252.721658,0.00015,2]
[329186882,1718165444279,-252.721658,0.00015,2]
[329186883,1718165444291,-151.0,0.00015,2]
[329186884,1718165444306,-160.295654,0.00015,2]
[329186885,1718165444318,-747.171159,0.00015,2]
[329186886,1718165444330,-747.171159,0.00015,2]
[329186887,1718165444342,-252.721658,0.00015,2]
[329186888,1718165444355,-153.087786,0.00015,2]
[329186889,1718165444367,-252.721658,0.00015,2]
[329186890,1718165444379,-747.171159,0.00015,2]
[329186891,1718165444393,-747.171159,0.00015,2]
[329186892,1718165444407,-151.0,0.00015,2]
[329186893,1718165444419,-151.0,0.00015,2]
[329186894,1718165444437,-163.000983,0.00015,2]
[329186895,1718165444449,-151.0,0.00015,2]
[329186896,1718165444461,-151.0,0.00015,2]
[329186897,1718165444473,-155.470486,0.00015,2]
[329186898,1718165444486,-151.0,0.00015,2]
[329186899,1718165444498,-151.0,0.00015,2]
[329186900,1718165444510,-151.0,0.00015,2]
[329186901,1718165444522,-151.0,0.00015,2]
[329186902,1718165444535,-151.0,0.00015,2]
[329186903,1718165444549,-151.0,0.00015,2]
[329186904,1718165444561,-151.0,0.00015,2]
[329186905,1718165444573,-484.970837,0.00015,2]
[329186906,1718165444586,-151.0,0.00015,2]
[329186907,1718165444598,-484.970837,0.00015,2]
[329186908,1718165444610,-151.0,0.00015,2]
[329186909,1718165444621,-151.0,0.00015,2]
[329186910,1718165444633,-151.0,0.00015,2]
[329186911,1718165444648,-184.760096,0.00015,2]